[Event "FIDE Women's Grand Swiss 2023"]
[Site "Villa Marina, Douglas, Isle of Man, Isle Of Man"]
[Date "2023.11.03"]
[Round "9.1"]
[White "Stefanova, Antoaneta"]
[Black "Vaishali, Rameshbabu"]
[Result "0-1"]
[TimeControl "40/90 + 30 + 30s/move"]
[WhiteFideId "2902257"]
[BlackFideId "5091756"]
[WhiteElo "2424"]
[BlackElo "2448"]

1. d4 {[%clk 01:30:53]} {[%emt 00:00:06]} Nf6 {[%clk 01:30:24]} {[%emt
00:00:37]} 2. Nf3 {[%clk 01:30:36]} {[%emt 00:00:46]} e6 {[%clk 01:30:15]}
{[%emt 00:00:39]} 3. g3 {[%clk 01:26:19]} {[%emt 00:04:47]} b5 {[%clk
01:28:39]} {[%emt 00:02:07]} 4. a4 {[%clk 01:24:34]} {[%emt 00:02:15]} b4
{[%clk 01:28:52]} {[%emt 00:00:17]} 5. c4 {[%clk 01:24:56]} {[%emt 00:00:07]}
bxc3 {[%clk 01:26:00]} {[%emt 00:03:23]} 6. bxc3 {[%clk 01:21:17]} {[%emt
00:04:09]} d5 {[%clk 01:22:49]} {[%emt 00:03:40]} 7. Bg2 {[%clk 01:16:43]}
{[%emt 00:05:04]} Ba6 {[%clk 01:20:35]} {[%emt 00:02:44]} 8. Ne5 {[%clk
01:13:11]} {[%emt 00:04:02]} Nbd7 {[%clk 01:16:54]} {[%emt 00:04:12]} 9. Nc6
{[%clk 01:09:27]} {[%emt 00:04:13]} Qc8 {[%clk 01:17:22]} {[%emt 00:00:03]} 10.
Ba3 {[%clk 01:07:59]} {[%emt 00:01:57]} Bxa3 {[%clk 01:03:32]} {[%emt
00:14:19]} 11. Nxa3 {[%clk 01:07:42]} {[%emt 00:00:48]} Qb7 {[%clk 01:00:21]}
{[%emt 00:03:42]} 12. Nb4 {[%clk 01:05:02]} {[%emt 00:03:09]} c5 {[%clk
00:58:47]} {[%emt 00:02:04]} 13. dxc5 {[%clk 00:59:41]} {[%emt 00:05:51]} Nxc5
{[%clk 00:59:15]} {[%emt 00:00:03]} 14. Rb1 {[%clk 00:57:47]} {[%emt 00:02:23]}
Qd7 {[%clk 00:47:44]} {[%emt 00:12:01]} 15. Nxa6 {[%clk 00:41:10]} {[%emt
00:17:07]} Nxa6 {[%clk 00:48:11]} {[%emt 00:00:03]} 16. c4 {[%clk 00:41:06]}
{[%emt 00:00:35]} O-O {[%clk 00:43:14]} {[%emt 00:05:26]} 17. cxd5 {[%clk
00:39:41]} {[%emt 00:01:55]} Nxd5 {[%clk 00:35:54]} {[%emt 00:07:50]} 18. e4
{[%clk 00:23:02]} {[%emt 00:17:09]} Qe7 {[%clk 00:33:09]} {[%emt 00:03:15]} 19.
Nb5 {[%clk 00:12:06]} {[%emt 00:11:26]} Nb6 {[%clk 00:27:01]} {[%emt 00:06:38]}
20. a5 {[%clk 00:12:30]} {[%emt 00:00:06]} Nc4 {[%clk 00:24:53]} {[%emt
00:02:38]} 21. Qe2 {[%clk 00:12:28]} {[%emt 00:00:31]} Rac8 {[%clk 00:19:37]}
{[%emt 00:05:47]} 22. O-O {[%clk 00:11:06]} {[%emt 00:01:52]} Rc5 {[%clk
00:18:47]} {[%emt 00:01:20]} 23. Rfc1 {[%clk 00:07:43]} {[%emt 00:03:53]} Rfc8
{[%clk 00:18:29]} {[%emt 00:00:48]} 24. Qa2 {[%clk 00:07:46]} {[%emt 00:00:27]}
h5 {[%clk 00:14:54]} {[%emt 00:04:05]} 25. Bf1 {[%clk 00:07:19]} {[%emt
00:00:57]} Ne5 {[%clk 00:13:50]} {[%emt 00:01:34]} 26. Qa3 {[%clk 00:06:19]}
{[%emt 00:01:30]} Nf3+ {[%clk 00:04:57]} {[%emt 00:09:24]} 27. Kg2 {[%clk
00:05:28]} {[%emt 00:01:20]} Nd2 {[%clk 00:05:07]} {[%emt 00:00:20]} 28. Rxc5
{[%clk 00:04:43]} {[%emt 00:01:15]} Rxc5 {[%clk 00:02:45]} {[%emt 00:02:52]} 29.
Rd1 {[%clk 00:03:02]} {[%emt 00:02:11]} Nxe4 {[%clk 00:01:54]} {[%emt
00:01:22]} 30. Qf3 {[%clk 00:02:36]} {[%emt 00:00:55]} Re5 {[%clk 00:00:49]}
{[%emt 00:01:36]} 31. Qf4 {[%clk 00:01:31]} {[%emt 00:01:34]} f6 {[%clk
00:01:00]} {[%emt 00:00:19]} 32. Nd4 {[%clk 00:01:44]} {[%emt 00:00:17]} Qb7
{[%clk 00:00:33]} {[%emt 00:00:57]} 33. Nf3 {[%clk 00:01:06]} {[%emt 00:01:07]}
Rxa5 {[%clk 00:00:40]} {[%emt 00:00:24]} 34. Rd8+ {[%clk 00:01:15]} {[%emt
00:00:20]} Kh7 {[%clk 00:00:56]} {[%emt 00:00:15]} 35. Bxa6 {[%clk 00:00:40]}
{[%emt 00:01:04]} Rxa6 {[%clk 00:01:23]} {[%emt 00:00:04]} 36. Rb8 {[%clk
00:00:41]} {[%emt 00:00:29]} Qd5 {[%clk 00:01:25]} {[%emt 00:00:28]} 37. Rb4
{[%clk 00:00:47]} {[%emt 00:00:25]} Ng5 {[%clk 00:01:20]} {[%emt 00:00:35]} 38.
h4 {[%clk 00:00:52]} {[%emt 00:00:24]} Nxf3 {[%clk 00:01:31]} {[%emt 00:00:19]}
39. Qxf3 {[%clk 00:01:19]} {[%emt 00:00:03]} Qxf3+ {[%clk 00:01:53]} {[%emt
00:00:08]} 40. Kxf3 {[%clk 00:01:45]} {[%emt 00:00:03]} Ra2 {[%clk 00:01:54]}
{[%emt 00:00:29]} 41. Rb7 {[%clk 00:02:02]} {[%emt 00:00:13]} a5 {[%clk
00:01:54]} {[%emt 00:00:30]} 42. Re7 {[%clk 00:29:40]} {[%emt 00:02:52]} e5
{[%clk 00:30:08]} {[%emt 00:02:16]} 43. Ra7 {[%clk 00:30:01]} {[%emt 00:00:09]}
a4 {[%clk 00:30:02]} {[%emt 00:00:37]} 44. Ke3 {[%clk 00:27:58]} {[%emt
00:02:32]} Ra1 {[%clk 00:28:59]} {[%emt 00:01:33]} 45. Kf3 {[%clk 00:27:42]}
{[%emt 00:00:47]} Kh6 {[%clk 00:28:00]} {[%emt 00:01:29]} 46. Ra6 {[%clk
00:27:57]} {[%emt 00:00:15]} a3 {[%clk 00:27:12]} {[%emt 00:01:18]} 47. Ke3
{[%clk 00:27:22]} {[%emt 00:01:05]} Kg6 {[%clk 00:26:23]} {[%emt 00:01:19]} 48.
Ra7 {[%clk 00:27:43]} {[%emt 00:00:09]} Kf5 {[%clk 00:24:05]} {[%emt 00:02:49]}
49. Kf3 {[%clk 00:28:01]} {[%emt 00:00:11]} g6 {[%clk 00:23:30]} {[%emt
00:01:05]} 50. Ra4 {[%clk 00:27:32]} {[%emt 00:00:58]} a2 {[%clk 00:21:57]}
{[%emt 00:02:04]} 51. Ra6 {[%clk 00:25:06]} {[%emt 00:02:55]} g5 {[%clk
00:18:37]} {[%emt 00:03:50]} 52. hxg5 {[%clk 00:24:09]} {[%emt 00:01:27]} fxg5
{[%clk 00:19:04]} {[%emt 00:00:03]} 53. Ra4 {[%clk 00:16:45]} {[%emt 00:07:54]}
e4+ {[%clk 00:18:08]} {[%emt 00:01:26]} 54. Kg2 {[%clk 00:17:01]} {[%emt
00:00:14]} h4 {[%clk 00:17:47]} {[%emt 00:00:51]} 55. gxh4 {[%clk 00:15:53]}
{[%emt 00:01:38]} gxh4 {[%clk 00:18:14]} {[%emt 00:00:03]} 56. Ra8 {[%clk
00:14:45]} {[%emt 00:01:38]} h3+ {[%clk 00:18:13]} {[%emt 00:00:31]} 57. Kh2
{[%clk 00:15:11]} {[%emt 00:00:04]} Kg4 {[%clk 00:18:14]} {[%emt 00:00:29]} 58.
Ra3 {[%clk 00:11:45]} {[%emt 00:03:56]} Kf4 {[%clk 00:18:34]} {[%emt 00:00:11]}
0-1

[Event "FIDE Women's Grand Swiss 2023"]
[Site "Villa Marina, Douglas, Isle of Man, Isle Of Man"]
[Date "2023.11.03"]
[Round "9.2"]
[White "Garifullina, Leya"]
[Black "Muzychuk, Anna"]
[Result "1/2-1/2"]
[TimeControl "40/90 + 30 + 30s/move"]
[WhiteFideId "34127035"]
[BlackFideId "14111330"]
[WhiteElo "2402"]
[BlackElo "2510"]

1. e4 {[%clk 01:30:43]} {[%emt 00:00:16]} e5 {[%clk 01:30:55]} {[%emt
00:00:07]} 2. Nf3 {[%clk 01:31:04]} {[%emt 00:00:08]} Nc6 {[%clk 01:31:19]}
{[%emt 00:00:06]} 3. Bb5 {[%clk 01:31:27]} {[%emt 00:00:07]} a6 {[%clk
01:31:46]} {[%emt 00:00:04]} 4. Ba4 {[%clk 01:31:48]} {[%emt 00:00:08]} Nf6
{[%clk 01:32:11]} {[%emt 00:00:04]} 5. O-O {[%clk 01:32:10]} {[%emt 00:00:09]}
Be7 {[%clk 01:32:27]} {[%emt 00:00:14]} 6. d3 {[%clk 01:32:13]} {[%emt
00:00:27]} b5 {[%clk 01:32:36]} {[%emt 00:00:22]} 7. Bb3 {[%clk 01:32:34]}
{[%emt 00:00:08]} d6 {[%clk 01:32:44]} {[%emt 00:00:22]} 8. a3 {[%clk
01:32:57]} {[%emt 00:00:08]} Na5 {[%clk 01:32:15]} {[%emt 00:00:59]} 9. Ba2
{[%clk 01:33:19]} {[%emt 00:00:08]} c5 {[%clk 01:32:30]} {[%emt 00:00:15]} 10.
Nc3 {[%clk 01:31:17]} {[%emt 00:02:31]} Be6 {[%clk 01:30:04]} {[%emt 00:02:57]}
11. Bg5 {[%clk 01:28:19]} {[%emt 00:03:26]} Nc6 {[%clk 01:25:11]} {[%emt
00:05:25]} 12. Bxf6 {[%clk 01:21:40]} {[%emt 00:07:08]} Bxf6 {[%clk 01:24:02]}
{[%emt 00:01:39]} 13. Nd5 {[%clk 01:21:38]} {[%emt 00:00:32]} O-O {[%clk
01:24:00]} {[%emt 00:00:33]} 14. c3 {[%clk 01:20:27]} {[%emt 00:01:40]} a5
{[%clk 01:20:46]} {[%emt 00:03:45]} 15. a4 {[%clk 01:18:08]} {[%emt 00:02:48]}
b4 {[%clk 01:21:07]} {[%emt 00:00:09]} 16. Bc4 {[%clk 01:13:39]} {[%emt
00:04:59]} Rb8 {[%clk 01:19:31]} {[%emt 00:02:06]} 17. h3 {[%clk 01:11:44]}
{[%emt 00:02:23]} h6 {[%clk 01:15:44]} {[%emt 00:04:20]} 18. Qd2 {[%clk
01:04:05]} {[%emt 00:08:09]} Kh7 {[%clk 01:09:26]} {[%emt 00:06:48]} 19. Rfd1
{[%clk 01:00:37]} {[%emt 00:03:57]} g6 {[%clk 01:04:34]} {[%emt 00:05:23]} 20.
Nxf6+ {[%clk 00:59:29]} {[%emt 00:01:38]} Qxf6 {[%clk 01:05:03]} {[%emt
00:00:01]} 21. Nh2 {[%clk 00:57:47]} {[%emt 00:02:11]} Kg7 {[%clk 01:00:53]}
{[%emt 00:04:41]} 22. Ng4 {[%clk 00:49:58]} {[%emt 00:08:18]} Qf4 {[%clk
00:56:23]} {[%emt 00:05:00]} 23. Ne3 {[%clk 00:47:40]} {[%emt 00:02:47]} Rfd8
{[%clk 00:50:49]} {[%emt 00:06:05]} 24. Qe2 {[%clk 00:40:55]} {[%emt 00:07:14]}
h5 {[%clk 00:46:03]} {[%emt 00:05:17]} 25. g3 {[%clk 00:34:31]} {[%emt
00:06:53]} Qf6 {[%clk 00:45:54]} {[%emt 00:00:40]} 26. Nd5 {[%clk 00:33:55]}
{[%emt 00:01:06]} Bxd5 {[%clk 00:45:49]} {[%emt 00:00:36]} 27. Bxd5 {[%clk
00:34:19]} {[%emt 00:00:05]} Ne7 {[%clk 00:46:02]} {[%emt 00:00:17]} 28. Bc4
{[%clk 00:34:38]} {[%emt 00:00:11]} h4 {[%clk 00:41:02]} {[%emt 00:05:30]} 29.
Qg4 {[%clk 00:31:04]} {[%emt 00:04:03]} d5 {[%clk 00:37:58]} {[%emt 00:03:36]}
30. Bb5 {[%clk 00:28:16]} {[%emt 00:03:18]} bxc3 {[%clk 00:37:29]} {[%emt
00:00:59]} 31. bxc3 {[%clk 00:28:39]} {[%emt 00:00:06]} Rh8 {[%clk 00:35:44]}
{[%emt 00:02:15]} 32. Rf1 {[%clk 00:25:19]} {[%emt 00:03:51]} Rh5 {[%clk
00:22:11]} {[%emt 00:14:02]} 33. Kg2 {[%clk 00:24:29]} {[%emt 00:01:20]} Rbh8
{[%clk 00:19:58]} {[%emt 00:02:44]} 34. Rh1 {[%clk 00:21:07]} {[%emt 00:03:51]}
Rd8 {[%clk 00:12:46]} {[%emt 00:07:42]} 35. Rad1 {[%clk 00:19:47]} {[%emt
00:01:50]} Rdh8 {[%clk 00:09:26]} {[%emt 00:03:50]} 36. Rde1 {[%clk 00:19:02]}
{[%emt 00:01:14]} Rd8 {[%clk 00:09:17]} {[%emt 00:00:40]} 37. Qf3 {[%clk
00:16:44]} {[%emt 00:02:49]} Qe6 {[%clk 00:08:00]} {[%emt 00:01:47]} 38. g4
{[%clk 00:15:16]} {[%emt 00:01:57]} Rhh8 {[%clk 00:08:21]} {[%emt 00:00:08]} 39.
Qe3 {[%clk 00:14:37]} {[%emt 00:01:09]} Qd6 {[%clk 00:06:21]} {[%emt 00:02:31]}
40. Rhf1 {[%clk 00:11:14]} {[%emt 00:03:53]} f6 {[%clk 00:01:12]} {[%emt
00:05:39]} 41. d4 {[%clk 00:03:15]} {[%emt 00:08:29]} cxd4 {[%clk 00:27:10]}
{[%emt 00:04:32]} 42. cxd4 {[%clk 00:33:39]} {[%emt 00:00:06]} dxe4 {[%clk
00:23:10]} {[%emt 00:04:30]} 43. dxe5 {[%clk 00:33:57]} {[%emt 00:00:12]} Qxe5
{[%clk 00:23:36]} {[%emt 00:00:05]} 44. Qxe4 {[%clk 00:29:35]} {[%emt
00:04:51]} Qxe4+ {[%clk 00:23:48]} {[%emt 00:00:19]} 45. Rxe4 {[%clk 00:30:01]}
{[%emt 00:00:04]} Nd5 {[%clk 00:23:57]} {[%emt 00:00:21]} 46. Bc6 {[%clk
00:28:31]} {[%emt 00:01:59]} Rd6 {[%clk 00:19:20]} {[%emt 00:05:08]} 47. Bxd5
{[%clk 00:28:05]} {[%emt 00:00:55]} Rxd5 {[%clk 00:19:49]} {[%emt 00:00:01]} 48.
Rb1 {[%clk 00:28:11]} {[%emt 00:00:23]} Rhd8 {[%clk 00:18:23]} {[%emt
00:01:57]} 49. Re7+ {[%clk 00:28:24]} {[%emt 00:00:17]} Kh6 {[%clk 00:18:37]}
{[%emt 00:00:16]} 50. Ra7 {[%clk 00:28:25]} {[%emt 00:00:29]} Rc8 {[%clk
00:08:04]} {[%emt 00:11:04]} 51. Rb5 {[%clk 00:22:31]} {[%emt 00:06:23]} Rxb5
{[%clk 00:08:14]} {[%emt 00:00:21]} 52. axb5 {[%clk 00:22:56]} {[%emt
00:00:04]} Rc3 {[%clk 00:08:24]} {[%emt 00:00:20]} 53. Rxa5 {[%clk 00:22:24]}
{[%emt 00:01:03]} Rb3 {[%clk 00:08:49]} {[%emt 00:00:04]} 54. Ra6 {[%clk
00:21:22]} {[%emt 00:01:33]} Rxb5 {[%clk 00:06:33]} {[%emt 00:02:46]} 55. Rxf6
{[%clk 00:21:46]} {[%emt 00:00:05]} Kg5 {[%clk 00:06:45]} {[%emt 00:00:18]} 56.
Re6 {[%clk 00:19:01]} {[%emt 00:03:15]} Rb3 {[%clk 00:06:03]} {[%emt 00:01:12]}
57. Re3 {[%clk 00:17:17]} {[%emt 00:02:14]} Rb5 {[%clk 00:06:22]} {[%emt
00:00:09]} 58. Kf3 {[%clk 00:16:36]} {[%emt 00:01:13]} Ra5 {[%clk 00:04:43]}
{[%emt 00:02:10]} 59. Rd3 {[%clk 00:16:41]} {[%emt 00:00:25]} Re5 {[%clk
00:03:41]} {[%emt 00:01:31]} 60. Rd4 {[%clk 00:16:25]} {[%emt 00:00:45]} Kf6
{[%clk 00:01:54]} {[%emt 00:02:18]} 61. Kf4 {[%clk 00:15:07]} {[%emt 00:01:48]}
g5+ {[%clk 00:02:13]} {[%emt 00:00:11]} 62. Kf3 {[%clk 00:15:32]} {[%emt
00:00:04]} Re6 {[%clk 00:02:32]} {[%emt 00:00:12]} 63. Rd5 {[%clk 00:15:34]}
{[%emt 00:00:28]} Kg6 {[%clk 00:02:46]} {[%emt 00:00:16]} 64. Kg2 {[%clk
00:15:00]} {[%emt 00:01:05]} Ra6 {[%clk 00:02:56]} {[%emt 00:00:20]} 65. Rd3
{[%clk 00:07:47]} {[%emt 00:07:41]} Rf6 {[%clk 00:03:03]} {[%emt 00:00:23]} 66.
Rd4 {[%clk 00:07:12]} {[%emt 00:01:05]} Ra6 {[%clk 00:02:25]} {[%emt 00:01:10]}
67. Re4 {[%clk 00:05:04]} {[%emt 00:02:37]} Ra2 {[%clk 00:01:53]} {[%emt
00:01:02]} 68. Rb4 {[%clk 00:04:10]} {[%emt 00:01:25]} Kf6 {[%clk 00:01:51]}
{[%emt 00:00:32]} 69. Rb6+ {[%clk 00:04:24]} {[%emt 00:00:15]} Kg7 {[%clk
00:01:50]} {[%emt 00:00:31]} 70. Rb3 {[%clk 00:04:47]} {[%emt 00:00:07]} Kg6
{[%clk 00:01:56]} {[%emt 00:00:24]} 71. Kf3 {[%clk 00:05:13]} {[%emt 00:00:04]}
Ra6 {[%clk 00:02:13]} {[%emt 00:00:13]} 72. Ke4 {[%clk 00:04:56]} {[%emt
00:00:46]} Re6+ {[%clk 00:02:18]} {[%emt 00:00:25]} 73. Kd5 {[%clk 00:04:59]}
{[%emt 00:00:28]} Re2 {[%clk 00:02:22]} {[%emt 00:00:26]} 74. Rf3 {[%clk
00:04:35]} {[%emt 00:00:53]} Re1 {[%clk 00:02:27]} {[%emt 00:00:27]} 75. Re3
{[%clk 00:03:44]} {[%emt 00:01:19]} Rf1 {[%clk 00:02:32]} {[%emt 00:00:26]} 76.
Re6+ {[%clk 00:03:16]} {[%emt 00:00:58]} Kg7 {[%clk 00:02:06]} {[%emt
00:00:56]} 77. Re2 {[%clk 00:02:46]} {[%emt 00:01:01]} Rh1 {[%clk 00:02:07]}
{[%emt 00:00:29]} 78. Re3 {[%clk 00:02:24]} {[%emt 00:00:51]} Rf1 {[%clk
00:02:30]} {[%emt 00:00:07]} 79. f3 {[%clk 00:02:06]} {[%emt 00:00:48]} Kf6
{[%clk 00:02:38]} {[%emt 00:00:23]} 80. Ke4 {[%clk 00:02:09]} {[%emt 00:00:26]}
Ra1 {[%clk 00:02:35]} {[%emt 00:00:33]} 81. Rd3 {[%clk 00:02:13]} {[%emt
00:00:26]} Re1+ {[%clk 00:02:53]} {[%emt 00:00:12]} 82. Re3 {[%clk 00:02:08]}
{[%emt 00:00:35]} Ra1 {[%clk 00:03:19]} {[%emt 00:00:04]} 83. Rd3 {[%clk
00:02:02]} {[%emt 00:00:36]} Re1+ {[%clk 00:03:45]} {[%emt 00:00:04]} 84. Re3
{[%clk 00:02:02]} {[%emt 00:00:30]} 1/2-1/2

[Event "FIDE Women's Grand Swiss 2023"]
[Site "Villa Marina, Douglas, Isle of Man, Isle Of Man"]
[Date "2023.11.03"]
[Round "9.3"]
[White "Milliet, Sophie"]
[Black "Tan, Zhongyi"]
[Result "0-1"]
[TimeControl "40/90 + 30 + 30s/move"]
[WhiteFideId "623725"]
[BlackFideId "8603642"]
[WhiteElo "2391"]
[BlackElo "2517"]

1. e4 {[%clk 01:30:56]} {[%emt 00:00:03]} c5 {[%clk 01:30:51]} {[%emt
00:00:08]} 2. Nf3 {[%clk 01:31:17]} {[%emt 00:00:09]} e6 {[%clk 01:31:15]}
{[%emt 00:00:07]} 3. c3 {[%clk 01:31:25]} {[%emt 00:00:22]} Nf6 {[%clk
01:31:37]} {[%emt 00:00:07]} 4. e5 {[%clk 01:31:47]} {[%emt 00:00:09]} Nd5
{[%clk 01:32:00]} {[%emt 00:00:07]} 5. d4 {[%clk 01:32:03]} {[%emt 00:00:14]}
cxd4 {[%clk 01:32:24]} {[%emt 00:00:06]} 6. cxd4 {[%clk 01:32:30]} {[%emt
00:00:03]} d6 {[%clk 01:32:49]} {[%emt 00:00:05]} 7. Bc4 {[%clk 01:32:39]}
{[%emt 00:00:21]} dxe5 {[%clk 01:33:13]} {[%emt 00:00:07]} 8. dxe5 {[%clk
01:32:48]} {[%emt 00:00:20]} Be7 {[%clk 01:33:36]} {[%emt 00:00:07]} 9. O-O
{[%clk 01:29:57]} {[%emt 00:03:21]} O-O {[%clk 01:34:00]} {[%emt 00:00:05]} 10.
Qe2 {[%clk 01:29:58]} {[%emt 00:00:30]} Bd7 {[%clk 01:34:24]} {[%emt 00:00:06]}
11. Nbd2 {[%clk 01:18:44]} {[%emt 00:11:44]} Bc6 {[%clk 01:28:13]} {[%emt
00:06:41]} 12. Ne4 {[%clk 01:18:06]} {[%emt 00:01:08]} Nd7 {[%clk 01:28:35]}
{[%emt 00:00:08]} 13. Bd3 {[%clk 01:12:47]} {[%emt 00:05:50]} Qc7 {[%clk
01:19:58]} {[%emt 00:09:06]} 14. Neg5 {[%clk 00:53:30]} {[%emt 00:19:46]} h6
{[%clk 01:16:46]} {[%emt 00:03:42]} 15. Nh7 {[%clk 00:38:59]} {[%emt 00:15:01]}
Rfd8 {[%clk 01:15:19]} {[%emt 00:01:57]} 16. Bb1 {[%clk 00:32:38]} {[%emt
00:06:52]} Qb6 {[%clk 01:07:39]} {[%emt 00:08:09]} 17. a4 {[%clk 00:22:04]}
{[%emt 00:11:06]} g6 {[%clk 01:06:12]} {[%emt 00:01:55]} 18. Qd2 {[%clk
00:21:04]} {[%emt 00:01:31]} Nf8 {[%clk 01:05:12]} {[%emt 00:01:30]} 19. Nxf8
{[%clk 00:19:11]} {[%emt 00:02:23]} Bxf8 {[%clk 01:05:35]} {[%emt 00:00:07]} 20.
Qe2 {[%clk 00:19:03]} {[%emt 00:00:39]} Qb4 {[%clk 01:03:31]} {[%emt 00:02:32]}
21. Qe4 {[%clk 00:12:20]} {[%emt 00:07:13]} Rac8 {[%clk 00:58:57]} {[%emt
00:05:05]} 22. Nd4 {[%clk 00:08:47]} {[%emt 00:04:04]} Be8 {[%clk 00:59:13]}
{[%emt 00:00:13]} 23. Be3 {[%clk 00:04:31]} {[%emt 00:04:46]} Qxb2 {[%clk
00:59:00]} {[%emt 00:00:43]} 24. Ra2 {[%clk 00:04:38]} {[%emt 00:00:24]} Qb4
{[%clk 00:59:23]} {[%emt 00:00:06]} 25. Bd2 {[%clk 00:00:47]} {[%emt 00:04:21]}
Nc3 {[%clk 00:53:30]} {[%emt 00:06:22]} 26. Bxc3 {[%clk 00:01:14]} {[%emt
00:00:04]} Rxc3 {[%clk 00:53:47]} {[%emt 00:00:12]} 27. Nb5 {[%clk 00:01:24]}
{[%emt 00:00:20]} Rc4 {[%clk 00:50:50]} {[%emt 00:03:28]} 28. Qxb7 {[%clk
00:01:16]} {[%emt 00:00:39]} Bc6 {[%clk 00:46:57]} {[%emt 00:04:22]} 29. Qa6
{[%clk 00:01:43]} {[%emt 00:00:04]} Bxg2 {[%clk 00:42:38]} {[%emt 00:04:48]} 30.
Kxg2 {[%clk 00:02:06]} {[%emt 00:00:08]} Rg4+ {[%clk 00:43:00]} {[%emt
00:00:07]} 31. Kh1 {[%clk 00:02:20]} {[%emt 00:00:16]} Qc4 {[%clk 00:43:24]}
{[%emt 00:00:06]} 32. Nc7 {[%clk 00:01:15]} {[%emt 00:01:35]} Qxc7 {[%clk
00:43:48]} {[%emt 00:00:06]} 33. Qe2 {[%clk 00:00:42]} {[%emt 00:01:03]} Qc6+
{[%clk 00:42:58]} {[%emt 00:01:19]} 34. f3 {[%clk 00:01:05]} {[%emt 00:00:08]}
Rxa4 {[%clk 00:43:19]} {[%emt 00:00:09]} 35. Rxa4 {[%clk 00:00:35]} {[%emt
00:01:01]} Qxa4 {[%clk 00:43:42]} {[%emt 00:00:06]} 36. Rg1 {[%clk 00:00:32]}
{[%emt 00:00:33]} Bc5 {[%clk 00:42:59]} {[%emt 00:01:13]} 37. Rc1 {[%clk
00:00:46]} {[%emt 00:00:16]} Bb6 {[%clk 00:42:46]} {[%emt 00:00:43]} 38. Be4
{[%clk 00:00:34]} {[%emt 00:00:42]} Qd4 {[%clk 00:42:16]} {[%emt 00:01:00]} 39.
f4 {[%clk 00:00:41]} {[%emt 00:00:24]} Qe3 {[%clk 00:41:44]} {[%emt 00:01:01]}
40. Qxe3 {[%clk 00:00:39]} {[%emt 00:00:32]} Bxe3 {[%clk 00:42:07]} {[%emt
00:00:06]} 41. Rc4 {[%clk 00:24:37]} {[%emt 00:06:32]} Bxf4 {[%clk 01:12:11]}
{[%emt 00:00:27]} 42. Bxg6 {[%clk 00:24:54]} {[%emt 00:00:13]} Rd1+ {[%clk
01:12:35]} {[%emt 00:00:06]} 43. Kg2 {[%clk 00:25:18]} {[%emt 00:00:06]} fxg6
{[%clk 01:10:35]} {[%emt 00:02:30]} 44. Rxf4 {[%clk 00:25:42]} {[%emt
00:00:06]} Rd5 {[%clk 01:11:00]} {[%emt 00:00:05]} 45. Rf6 {[%clk 00:25:29]}
{[%emt 00:00:44]} Rxe5 {[%clk 01:11:25]} {[%emt 00:00:05]} 46. Rxg6+ {[%clk
00:25:51]} {[%emt 00:00:08]} Kh7 {[%clk 01:11:52]} {[%emt 00:00:02]} 47. Rf6
{[%clk 00:26:15]} {[%emt 00:00:06]} Kg7 {[%clk 01:12:18]} {[%emt 00:00:04]} 48.
Rf4 {[%clk 00:26:14]} {[%emt 00:00:31]} Rg5+ {[%clk 01:12:43]} {[%emt
00:00:05]} 49. Kh3 {[%clk 00:26:33]} {[%emt 00:00:11]} a5 {[%clk 01:13:09]}
{[%emt 00:00:04]} 50. Ra4 {[%clk 00:26:16]} {[%emt 00:00:47]} Kf6 {[%clk
01:13:27]} {[%emt 00:00:11]} 51. Kh4 {[%clk 00:26:24]} {[%emt 00:00:23]} Rb5
{[%clk 01:13:40]} {[%emt 00:00:16]} 52. Ra3 {[%clk 00:25:55]} {[%emt 00:01:01]}
Ke7 {[%clk 01:13:55]} {[%emt 00:00:13]} 53. Kg4 {[%clk 00:25:47]} {[%emt
00:00:39]} Rf5 {[%clk 01:14:20]} {[%emt 00:00:04]} 54. Ra4 {[%clk 00:24:22]}
{[%emt 00:01:57]} Kd6 {[%clk 01:14:01]} {[%emt 00:00:48]} 55. h3 {[%clk
00:23:54]} {[%emt 00:00:57]} Rb5 {[%clk 01:13:36]} {[%emt 00:00:55]} 56. Ra1
{[%clk 00:23:04]} {[%emt 00:01:21]} Rf5 {[%clk 01:11:32]} {[%emt 00:02:33]} 57.
Ra4 {[%clk 00:23:15]} {[%emt 00:00:20]} h5+ {[%clk 01:11:57]} {[%emt 00:00:04]}
58. Kh4 {[%clk 00:23:14]} {[%emt 00:00:32]} Kc6 {[%clk 01:12:20]} {[%emt
00:00:07]} 59. Re4 {[%clk 00:21:30]} {[%emt 00:02:14]} e5 {[%clk 01:12:40]}
{[%emt 00:00:10]} 60. Kg3 {[%clk 00:17:34]} {[%emt 00:04:25]} Kb5 {[%clk
01:12:43]} {[%emt 00:00:28]} 61. Re1 {[%clk 00:17:23]} {[%emt 00:00:42]} a4
{[%clk 01:12:37]} {[%emt 00:00:35]} 62. Re3 {[%clk 00:17:18]} {[%emt 00:00:34]}
Ka5 {[%clk 01:12:47]} {[%emt 00:00:20]} 63. Kh4 {[%clk 00:17:12]} {[%emt
00:00:36]} Kb4 {[%clk 01:09:58]} {[%emt 00:03:19]} 64. Re4+ {[%clk 00:15:59]}
{[%emt 00:01:44]} Kc3 {[%clk 01:07:21]} {[%emt 00:03:03]} 65. Re3+ {[%clk
00:16:10]} {[%emt 00:00:22]} Kc2 {[%clk 01:07:19]} {[%emt 00:00:32]} 66. Re2+
{[%clk 00:16:11]} {[%emt 00:00:30]} Kd3 {[%clk 01:07:26]} {[%emt 00:00:22]} 67.
Ra2 {[%clk 00:15:48]} {[%emt 00:00:54]} Kc3 {[%clk 01:07:46]} {[%emt 00:00:09]}
68. Re2 {[%clk 00:14:32]} {[%emt 00:01:47]} a3 {[%clk 01:07:44]} {[%emt
00:00:32]} 69. Re3+ {[%clk 00:14:48]} {[%emt 00:00:14]} Kb4 {[%clk 01:08:09]}
{[%emt 00:00:04]} 70. Re4+ {[%clk 00:15:05]} {[%emt 00:00:14]} Kb5 {[%clk
01:08:36]} {[%emt 00:00:03]} 71. Re2 {[%clk 00:13:51]} {[%emt 00:01:44]} Kc4
{[%clk 01:08:47]} {[%emt 00:00:19]} 72. Re3 {[%clk 00:13:26]} {[%emt 00:00:55]}
a2 {[%clk 01:08:41]} {[%emt 00:00:36]} 73. Ra3 {[%clk 00:13:50]} {[%emt
00:00:06]} Rf2 {[%clk 01:09:07]} {[%emt 00:00:04]} 74. Kxh5 {[%clk 00:13:51]}
{[%emt 00:00:29]} Rg2 {[%clk 01:09:32]} {[%emt 00:00:05]} 75. h4 {[%clk
00:14:00]} {[%emt 00:00:21]} e4 {[%clk 01:09:55]} {[%emt 00:00:07]} 76. Kh6
{[%clk 00:14:14]} {[%emt 00:00:16]} e3 {[%clk 01:09:57]} {[%emt 00:00:28]} 77.
h5 {[%clk 00:14:27]} {[%emt 00:00:17]} Rd2 {[%clk 01:09:54]} {[%emt 00:00:32]}
0-1